Cogmind - Beta 15 @@@ ROGUE MODE // 2025.05.14 @ 06:34:15 Player: laeb2 Result: Destroyed by S-10 Pest with Light Assault Rifle Performance ------------- Evolutions (0) 0 Regions Visited (2) 400 Robots Destroyed (34) 170 Value Destroyed (715) 715 Prototype IDs (0) 0 Alien Tech Used (0) 0 Bonus (0) 0 TOTAL SCORE: 1285 Bonus ------- None Cogmind --------- Core Integrity 0/250 Matter 197/300 Energy 125/125 System Corruption 0% Temperature Cool (0) Movement Rolling (107) Ox1 Location -10/Subcaves Parts ------- > --- POWER (1) -------- Light Ion Engine > --- PROPULSION (2) --- Wheel Subdweller Monowheel > --- UTILITY (2) ------ High-capacity Storage Unit Signal Interpreter > --- WEAPON (2) ------- Grenade Launcher > --- INVENTORY (20) --- Subdweller Power Source Wheel High-capacity Storage Unit High-capacity Battery (250) Light Armor Plating Scrap Shield Medium Laser Small Laser Subdweller Laser Light Assault Rifle Light Assault Rifle Light Assault Rifle Datajack Scrap Shield Fragment (46) Scrap Shield Fragment (46) Peak State ------------ > --- POWER ------------ Ion Engine > --- PROPULSION ------- Wheel Compact Wheel > --- UTILITY ---------- High-capacity Storage Unit Improved Terrain Scanner > --- WEAPON ----------- EM Pulse Gun Light Assault Rifle > --- INVENTORY -------- Ion Engine Ion Engine Ion Engine Ion Engine Light Ion Engine Light Treads Wheel Wheel Wheel Wheel Wheel High-capacity Storage Unit Signal Interpreter Light Armor Plating Light Armor Plating EM Pulse Gun Light Assault Rifle Light Assault Rifle Grenade Launcher Datajack [Rating: 11] Favorites ----------- Power Ion Engine Engine Ion Engine Propulsion Wheel Wheel Wheel Utility High-capacity Storage Unit Device Improved Terrain Scanner Storage High-capacity Storage Unit Processor Signal Interpreter Protection Light Armor Plating Weapon EM Pulse Gun Energy Gun EM Pulse Gun Energy Cannon Subdweller Beam Cannon Ballistic Gun Light Assault Rifle Launcher Grenade Launcher Build | -11 -10 -10 ------- Run | Yrd Mat Sub Slots Evolved . | . . . Power . | . . . Propulsion . | . . . Utility . | . . . Weapon . | . . . Parts Attached 35 | 7 14 14 Power 6 | 1 1 4 Engine 6 | 1 1 4 Core . | . . . Reactor . | . . . Propulsion 7 | 2 1 4 Treads . | . . . Leg . | . . . Wheel 7 | 2 1 4 Hover . | . . . Flight . | . . . Utility 7 | 2 4 1 Device 1 | 1 . . Storage 2 | 1 1 . Processor 2 | . 1 1 Hackware . | . . . Protection 2 | . 2 . Artifact . | . . . Weapon 15 | 2 8 5 Energy Gun 7 | . 5 2 Energy Cannon 1 | . . 1 Ballistic Gun 6 | 2 3 1 Ballistic Cannon . | . . . Launcher 1 | . . 1 Special Weapon . | . . . Impact Weapon . | . . . Slashing Weapon . | . . . Piercing Weapon . | . . . Special Melee Weapon . | . . . Unidentified Prototypes . | . . . Parts Lost 17 | . 8 9 Power 3 | . 1 2 Propulsion 4 | . 1 3 Utility 2 | . 2 . Weapon 8 | . 4 4 Highest Loss Streak 6 | . 3 6 To Critical Strikes . | . . . Average Backups 14 | 5 13 16 Power 2 | . 2 2 Propulsion 3 | 3 4 2 Utility 2 | . 2 3 Weapon 4 | . 2 6 Tool/Special . | . . . Unused Backups 18 | 4 4 10 Power 1 | . . 1 Propulsion 10 | 4 4 2 Utility 4 | . . 4 Weapon 2 | . . 2 Tool/Special 1 | . . 1 Average Slot Usage (%) 98 | . 99 98 Engine 13 | . 13 14 Wheel 27 | . 27 27 Device 4 | . 11 . Storage 14 | . 14 14 Processor 4 | . . 7 Protection 4 | . 2 6 Energy Gun 12 | . 15 11 Energy Cannon 4 | . . 6 Ballistic Gun 6 | . 12 2 Launcher 3 | . . 6 Peak Build Rating 11 | 9 11 11 Average Rating 9 | 5 9 10 On Entrance 5 | . 9 8 Naked Turns . | . . . Heaviest Build 60 | 14 51 60 Greatest Support 30 | 26 26 30 Greatest Overweight (x) 4 | . 1 4 Average Overweight (x) 1 | . . 1 Largest Inventory Capacity 20 | 8 20 20 Average Capacity 17 | 7 14 20 Most Carried 20 | 8 20 20 Average Carried 15 | 5 13 17 Final Capacity 20 | 8 20 20 Final Carried 17 | 8 17 16 Class Distribution -------------------- 99% | Mutant Dominant Class ---------------- Mutant | -10/Materials Mutant | -10/Subcaves Resources | -11 -10 -10 ----------- Run | Yrd Mat Sub Matter Collected 720 | 302 189 229 Remotely . | . . . Salvage Created 1096 | 169 664 263 Parts 82 | 17 45 20 Haulers Intercepted 2 | . 2 . Recyclers Shooed . | . . . Parts Field Recycled . | . . . Retrieved Matter . | . . . Parts Self-Destructed 6 | . . 6 Prevented . | . . . Kills | -11 -10 -10 ------- Run | Yrd Mat Sub Combat Hostiles Destroyed 22 | . 13 9 Guns 12 | . 10 2 Cannons 2 | . . 2 AOE 8 | . 3 5 Classes Destroyed 9 | 2 7 . Builder 2 | . 2 . Tunneler 4 | 4 . . Hauler 2 | . 2 . Recycler 2 | 1 1 . Operator 1 | . 1 . Watcher 1 | . 1 . Swarmer 8 | . 6 2 Grunt 4 | . 4 . Subdweller 10 | . 3 7 Best Kill Streak 9 | 5 9 2 Combat Bots Only 5 | . 5 2 Max Kills in Single Turn 2 | 2 2 2 Gunslinging . | . . . Exploded 2 | . 2 2 Melee . | . . . Uniques/NPCs Destroyed . | . . . Combat | -11 -10 -10 -------- Run | Yrd Mat Sub Hostile Shots Fired 102 | . 62 40 Missed 34 | . 17 17 Hits 68 | . 45 23 Projectile 68 | . 45 23 Critical Strikes 2 | . 1 1 Damage Taken 1344 | . 654 690 Core 253 | . 70 183 Absorbed by Shields . | . . . Core Remaining (%) 100 | 100 . . Volleys Fired 152 | 8 75 69 Largest 2 | 2 2 2 Hottest 140 | 40 90 140 Shots Fired 245 | 16 134 95 Gun 216 | 16 134 66 Cannon 19 | . . 19 Launcher 10 | . . 10 Special . | . . . Kinetic 72 | 16 27 29 Thermal 78 | . 28 50 Explosive 10 | . . 10 Electromagnetic 85 | . 79 6 Robot Hit Streak 18 | 6 18 14 Robot Miss Streak 5 | 2 5 3 Penetration Max . | . . . Secondary Targets 1 | . 1 . Max Gunslinging Chain 1 | . 1 . Shots Hit Robots 125 | 10 77 38 Core Hits 50 | 7 31 12 Critical Kills 1 | 1 . . Critical Parts Destroyed . | . . . Critical Strikes 6 | 1 4 1 Burn 4 | . 3 1 Destroy 1 | 1 . . Corrupt 1 | . 1 . Melee Attacks . | . . . Impact . | . . . Slashing . | . . . Piercing . | . . . Sneak Attacks . | . . . Combat Hostiles . | . . . Follow-up Attacks . | . . . Damage Inflicted 2522 | 123 1327 1072 Guns 1437 | 123 946 368 Cannons 214 | . . 214 Explosions 871 | . 381 490 Melee . | . . . Ramming . | . . . Kinetic 294 | 123 139 32 Thermal 1150 | . 685 465 Explosive 490 | . . 490 Electromagnetic 588 | . 503 85 Impact . | . . . Slashing . | . . . Piercing . | . . . Highest Corruption . | . . . Average Corruption . | . . . Corruption Purged . | . . . Corruption Blocked . | . . . Overload Shots . | . . . Overflow Damage 76 | . 61 15 Projectiles . | . . . Explosions 76 | . 61 15 Melee . | . . . Knockbacks . | . . . Impact . | . . . Kinetic . | . . . Secondary . | . . . Self-Inflicted Damage 83 | . 47 36 Shots 3 | . 1 2 Rammed . | . . . Targets Rammed . | . . . Kicked . | . . . Crushed . | . . . Highest Temperature 366 | . 366 252 Average Temperature 95 | . 109 41 Received Heat Transfer 562 | . 168 394 Effects 2 | . 2 . Shutdowns 1 | . 1 . Interference 1 | . 1 . Siege Activations . | . . . Martial Activations . | . . . Shielding Activations . | . . . Robots Disrupted . | . . . Combat Hostiles . | . . . Robots Corrupted . | . . . Combat Hostiles . | . . . Parts Fried 3 | . 3 . Impact Corruptions . | . . . Robots Melted . | . . . Combat Hostiles . | . . . Parts Melted 10 | . 7 3 Heat Transferred 2439 | . 1610 829 Parts Sabotaged . | . . . Parts Stolen . | . . . Parts Stripped . | . . . Power Chain Reactions 5 | . 5 . Alert | -11 -10 -10 ------- Run | Yrd Mat Sub Maximum Alert Level . | . . . Low Security (%) 100 | 100 100 . Level 1 . | . . . Level 2 . | . . . Level 3 . | . . . Level 4 . | . . . Level 5 . | . . . High Security . | . . . Max Security . | . . . Peak Influence 134 | 15 134 . Initial . | . . . Average 49 | 4 55 . Influence Increases 465 | 25 370 70 Destroy 0b10 Robot/C 240 | . 200 40 Destroy 0b10 Robot/NC 60 | 25 35 . Destroy Leader 56 | . 56 . Successful Hack 18 | . 18 . Select Force Hacks 30 | . 30 . Destroy Structure 16 | . 16 . Lose Combat Pursuer 45 | . 15 30 Influence Decreases 395 | 25 370 . Time Decay 325 | 25 300 . Lost Part 70 | . 70 . Squads Dispatched 3 | . 3 . Investigation 1 | . 1 . Extermination . | . . . Reinforcement 2 | . 2 . Assault . | . . . Garrison . | . . . Intercept . | . . . Searches Triggered . | . . . Construction Impeded . | . . . Haulers Reinforced . | . . . Active Scanning Responses . | . . . Cargo Convoy Interrupts . | . . . Stealth | -11 -10 -10 --------- Run | Yrd Mat Sub Distress Signals . | . . . Communications Jammed . | . . . Distress Signals . | . . . Times Spotted 31 | . 22 9 Peak Tracking Total 6 | . 5 6 Tactical Retreats 2 | . 1 1 Traps | -11 -10 -10 ------- Run | Yrd Mat Sub Traps Triggered 3 | . . 3 Indirectly . | . . . Trap Hack Attempts . | . . . Triggered . | . . . Disarmed . | . . . Reprogrammed . | . . . Reused . | . . . Traps Extracted . | . . . Installed . | . . . Triggered . | . . . Most Traps Carried 2 | . . 2 Machines | -11 -10 -10 ---------- Run | Yrd Mat Sub Machines Disabled . | . . . Max in Single Turn . | . . . Machines Repaired . | . . . Machines Dismantled . | . . . Machines Sabotaged . | . . . Overloaded Fab Kills . | . . . Hacking | -11 -10 -10 --------- Run | Yrd Mat Sub Machines Accessed 8 | . 7 1 Terminals 6 | . 6 . Fabricators . | . . . Repair Stations . | . . . Recycling Units 1 | . 1 . Scanalyzers . | . . . Garrison Access . | . . . Total Hacks 27 | . 23 4 Successful 20 | . 16 4 Failed 7 | . 7 . Catastrophic . | . . . Database Lockouts . | . . . Manual 21 | . 21 . Terminals 20 | . 20 . Fabricators . | . . . Repair Stations . | . . . Recycling Units 3 | . 3 . Scanalyzers . | . . . Garrison Access . | . . . Terminal Hacks 7 | . 3 4 Record 4 | . . 4 Hauler Manifests 1 | . 1 . Zone Layout 2 | . 2 . Fabricator Hacks . | . . . Repair Station Hacks . | . . . Recycling Unit Hacks . | . . . Scanalyzer . | . . . Garrison Access Hacks . | . . . Unauthorized Hacks 12 | . 12 . Terminals 11 | . 11 . Botnet 6 | . 6 . Skim 5 | . 5 . Fabricators . | . . . Repair Stations . | . . . Recycling Units 1 | . 1 . Tunnel 1 | . 1 . Scanalyzers . | . . . Garrison Access . | . . . Data Cores Recovered 1 | . 1 . Used 1 | . 1 . Hacking Detections 4 | . 4 . Full Trace Events . | . . . Feedback Events . | . . . Feedback Blocked . | . . . Robot Schematics Acquired . | . . . Robots Built . | . . . Authchips . | . . . Time . | . . . Total Robot Build Rating . | . . . Part Schematics Acquired . | . . . Parts Built . | . . . Authchips . | . . . Time . | . . . Total Part Build Rating . | . . . Parts Repaired . | . . . Time . | . . . Parts Recycled . | . . . Recycled Matter . | . . . Retrieved Matter . | . . . Retrieved Components . | . . . Parts Scanalyzed . | . . . Part Schematics Acquired . | . . . Parts Damaged . | . . . Bothacking | -11 -10 -10 ------------ Run | Yrd Mat Sub Used RIF Installer . | . . . Robots Hacked . | . . . Non-combat . | . . . Combat . | . . . Robot Hacks Applied . | . . . Relay Couplers Released . | . . . Fabnet Peak Effective % . | . . . Robots Rewired . | . . . Allies Hacked . | . . . Hacks Repelled . | . . . Allies | -11 -10 -10 -------- Run | Yrd Mat Sub Total Allies . | . . . Largest Group . | . . . Highest-Rated Group . | . . . Highest-Rated Ally . | . . . Total Orders . | . . . Ally Attacks . | . . . Total Damage . | . . . Kills . | . . . Allies Corrupted . | . . . Allies Melted . | . . . Intel | -11 -10 -10 ------- Run | Yrd Mat Sub Active Infowar (turns) 814 | 30 784 . Terrain 814 | 30 784 . Robot Analysis Total . | . . . Derelict Logs Recovered 1 | . . 1 Drone Launches . | . . . Drone Recoveries . | . . . Exploration | -11 -10 -10 ------------- Run | Yrd Mat Sub Turns Passed 2461 | 119 948 1394 Spaces Moved 1593 | 68 554 971 Core 11 | 11 . . Treads . | . . . Legs . | . . . Wheels 1582 | 57 554 971 Hover . | . . . Flight . | . . . Fastest Speed 50 | 50 90 107 Average Speed 107 | 83 99 113 Slowest Speed 140 | 90 105 140 Overloaded Moves . | . . . Propulsion Burnouts . | . . . Robots Hopped . | . . . Potential Cave-ins . | . . . Cave-ins Triggered . | . . . Exploration Rate (%) 49 | 5 93 51 Regions Visited 2 Branch Regions 1 Pre-discovered Areas 1 | . 1 . Known Exits Taken . | . . . Unknown Exits Taken 2 | 1 1 . Scrap Searched 5 | . . 5 Spaces Dug . | . . . Terrain Destroyed 59 | . 12 47 Melee . | . . . Projectile 3 | . . 3 AOE 56 | . 12 44 Terrain Rammed . | . . . Walls Destroyed . | . . . Machines Disabled . | . . . Actions | -11 -10 -10 --------- Run | Yrd Mat Sub Total 2108 | 117 825 1166 Wait 234 | 12 145 77 Move 1591 | 67 553 971 Hop . | . . . Pick Up 61 | 19 23 19 Fast Attach 4 | . 4 . Attach 24 | 7 9 8 Detach . | . . . Swap 14 | . 5 9 Drop 28 | 4 11 13 Fire 152 | 8 75 69 Melee . | . . . Ram . | . . . Kick . | . . . Crush . | . . . Escape Stasis . | . . . Rewire . | . . . Trap . | . . . Miscellaneous . | . . . Route ------- -11/Scrapyard -10/Materials (discovered 5 exits: *Mat x2 / [*Min x2] / *Sub) -10/Subcaves (discovered 1 exit: *Mat) History --------- Turn | Location | Event 8 | -11/Scrapyard | Discovered new exit (range 16) 120 | -11/Scrapyard | Entered Materials 219 | -10/Materials | Discovered new exit (range 11) 301 | -10/Materials | Build established: Mutant 335 | -10/Materials | Discovered new exit (range 10) 388 | -10/Materials | Identified exit to Materials 618 | -10/Materials | Discovered exit to Materials (range 16) 819 | -10/Materials | Discovered new exit (range 10) 820 | -10/Materials | Derelicts attacked the area 957 | -10/Materials | Lost 3 parts (1p1u1w) 1052 | -10/Materials | Discovered new exit (range 8) 1068 | -10/Materials | Entered Subcaves 1069 | -10/Subcaves | Approached by a straggling Scientist 1104 | -10/Subcaves | Learned location of 1 exit from Materials 1210 | -10/Subcaves | Visited Clippyterm 1214 | -10/Subcaves | Learned Research security intel 1657 | -10/Subcaves | Discovered new exit (range 14) 1678 | -10/Subcaves | Identified exit to Materials 1716 | -10/Subcaves | Core integrity fell below 50% 2065 | -10/Subcaves | A swath of the cavern ceiling suddenly collapsed 2121 | -10/Subcaves | Core integrity fell below 20% 2159 | -10/Subcaves | Lost 6 parts (1p2n3w) 2462 | -10/Subcaves | Destroyed by S-10 Pest with Light Assault Rifle Last Messages --------------- 02150_ Acquired Sub. Laser. 02168_ Acquired 31 matter. 78-V52(c): "I think it's somewhere east of here" 02377_ Acquired 13 matter. 78-V52(c): "I think it's somewhere northeast of here" 02421_ Battle Rifle destroyed. 02421_ Destroyed Battle Rifle. 02421_ Lgt. Ion Engine destroyed. 02421_ Destroyed Lgt. Ion Engine. 02424_ I0-9G8(R) destroyed. 02424_ RN-PY5(R) destroyed. 02426_ The unstable cave ceiling collapses. 02426_ Sub. Laser crushed. 02437_ Acquired Sub. Power Source. 02438_ Acquired 20 matter. 78-V52(c): "I think it's somewhere northeast of here" 02461_ Destroyed Flight Unit. Map ----- +----------------------------------------------------+ | ?????????????????????????????????????????????????? | | ?????????????????????????????????????????????????? | | ?????????????????????????????????????????????????? | | ?????????????????????????????????????????????????? | | ?????????????????????????????????????????????????? | | ?????????????????????????????????????????????????? | | ?????????????????????????????????????????????????? | | ?????????????????????????????????????????????????? | | ?????????????????????????????????????????????????? | | ?????????????????????????????????????????????????? | | ?????????????????????????????????????????????????? | | ?????????????????????????????????????????????????? | | ????????????????######???????????????????????????? | | ?????????####### ##??????? ??????????????? | | % ????##### # #??????? ??????????????? | | ???## ## #??????? ???????????????? | | ??# ## ###?????? #???????????????? | | ### #???????? %s #???????????????? | | #????????%= ##??????????????? | | | ##????????[ ##?????????????? | | # ## ##???????? # ####??????????? | | ???## ### ####???????##s ##?????????? | | ????# ### ##????????### #?????????? | | ????# ## ##?????????# ###????????? | | #??## #???????#### # ???????? | | #### #???????# @ ??????? | | ## #??###### ??????? | | ## #### c # #??????????? | | ## " " #####????????????? | | # & " #????????????????? | | ! #???????????????? | | ## !!= #?????????????? | | ### # * " "#????????????? | | #####?## ######### "### ## ##????????????? | | ???????####???????# # ##??##?####?????????????? | | ??????????????????#### ##???????????????????????? | | ?????????????????????####????????????????????????? | | ?????????????????????????????????????????????????? | | ?????????????????????????????????????????????????? | | ?????????????????????????????????????????????????? | | ?????????????????????????????????????????????????? | | ?????????????????????????????????????????????????? | | ?????????????????????????????????????????????????? | | ?????????????????????????????????????????????????? | | ?????????????????????????????????????????????????? | | ?????????????????????????????????????????????????? | | ?????????????????????????????????????????????????? | | ?????????????????????????????????????????????????? | | ?????????????????????????????????????????????????? | | | +----------------------------------------------------+ Best States ------------- Heat Dissipation 25 Energy Generation 10 Energy Capacity 250 Matter Stores 300 Matter Capacity 300 Sight Range 16 Terrain Scan Range 16 Terrain Scan Density 10 Armor Coverage 150 Evasion (%) 50 Item Schematics ----------------- None Robot Schematics ------------------ None Fabricated ------------ Nothing Repaired ---------- Nothing Alien Tech Used ----------------- None Achievements -------------- None Challenges ------------ None Game ------ Seed GrapheneShrapnelMegatreads Manual? 0 Play Time 00:22:20 Cumulative 92.5 hours Start 2025.05.14 @ 06:16:38 End 2025.05.14 @ 06:34:15 Sessions 1 Manual Loads 0 Difficulty Rogue Special Mode None Game No. 115 Rogue 115 Adventurer 0 Explorer 0 Win Type - Total 1 Types 1/0/0/0/0/0/0/0/0/0 Lore% 64 Gallery% 54 Achievement% 52 Wizard Run 0 Options --------- Layout 2 ASCII 0 Keyboard 0 Movement Mouse Keybinds 0 Fullscreen 1 Font 32/SmallcapsGlow Map View 50x44 Zoom Use 0% Tactical HUD 1 Map Filters NONE Filters NONE Steam 1 RUN: f3f5e0b4-39fb-47bd-8b8a-303eb635912c